Workbook

Sheet Janvier
B2: Revenus mensuels | G2: Opérations | M2: Reste & loisirs
B3: Nom | C3: Date | D3: Montant | E3: Reçu | G3: Date | H3: Objet | I3: Catégorie | J3: Montant | K3: Balance | M3: Date | N3: Objet | O3: Montant | P3: Balance
B4: Reste Décembre | D4: 100 | G4: =B4 -> Reste Décembre | J4: =D4 -> 100 | K4: =J4 -> 100
B5: Salaire Janvier | D5: 1800 | G5: =B5 -> Salaire Janvier | J5: =D5 -> 1800 | K5: =K4+J5 -> 1900
G6: 2023-01-01 | H6: Objet a | I6: Reste & Loisirs | J6: -20 | K6: =IF(J6="","",K5+J6) -> 1880
G7: 2023-01-02 | H7: Objet b | I7: Nourriture | J7: -32 | K7: =IF(J7="","",K6+J7) -> 1848
G8: 2023-01-03 | H8: Objet c | I8: Vêtements | J8: -42 | K8: 1806
G9: 2023-01-04 | H9: Objet d | I9: Hygiène | J9: -22 | K9: 1784
G10: 2023-01-05 | H10: Objet e | I10: Livret A | J10: 11 | K10: 1795
G11: 2023-01-06 | H11: Objet f | I11: Livret Jeune | J11: 12 | K11: 1807
G12: 2023-01-07 | H12: Objet g | I12: LDD Solidaire | J12: 13 | K12: 1820
G13: 2023-01-08 | H13: Objet h | I13: Millevie Essentiel | J13: 14 | K13: 1834
B14: Total | G14: 2023-01-09 | H14: Objet i | I14: Revenus mensuels | J14: 200 | K14: 2034
G15: 2023-01-10 | H15: Objet j | I15: Frais mensuels | J15: 100 | K15: 2134
B16: Frais mensuels | G16: 2023-01-11 | H16: Objet k | I16: Reste & Loisirs | J16: -10 | K16: 2124
B17: Nom | C17: Date | D17: Montant | E17: Reçu | G17: 2023-01-12 | H17: Objet l | I17: Nourriture | J17: -12 | K17: 2112
G18: 2023-01-13 | H18: Objet m | I18: Vêtements | J18: -9 | K18: 2103
G19: 2023-01-14 | H19: Objet n | I19: Hygiène | J19: -7 | K19: 2096
G20: 2023-01-15 | H20: Objet o | I20: Livret A | J20: 15 | K20: 2111
G21: 2023-01-16 | H21: Objet p | I21: Livret Jeune | J21: 16 | K21: 2127
G22: 2023-01-17 | H22: Objet q | I22: LDD Solidaire | J22: 17 | K22: 2144
G23: 2023-01-18 | H23: Objet r | I23: Millevie Essentiel | J23: 18 | K23: 2162
G24: 2023-01-19 | H24: Objet s | I24: Revenus mensuels | J24: 250 | K24: 2412
G25: 2023-01-20 | H25: Objet t | I25: Frais mensuels | J25: 150 | K25: 2562
B38: Total
B40: Budget mensuel
B41: Nom | C41: Montant | D41: Reste mois précédent
B42: Total | D42: =D4 -> 100
B43: Hygiène | D43: -50
B44: Vêtements | D44: -200
B45: Nourriture | D45: -150
B46: Reste/loisirs | D46: -40
B48: Calendrier
B49: Début mois | C49: 2024-01-01
B50: Fin mois | C50: =EOMONTH(C49,0) -> 2024-01-31 | D50: Budget quot.
B51: Nmbr de jours | C51: =DAY(EOMONTH(C49,0)) -> 31 | D51: =C46/C51 -> 0
B53: Livret A | C53: 100 | M53: Dépensé | N53: =SUM(O4:O52) -> 0 | O53: Restant | P53: =N2+N53 -> 0
B54: Date | C54: Objet | D54: Montant | E54: Balance
M55: Nourriture
M56: Date | N56: Objet | O56: Montant | P56: Balance
B64: Dépensé | C64: =SUM(D55:D63) -> 0 | D64: Restant | E64: =C53+C64 -> 100
B66: Livret Jeune | C66: 100
B67: Date | C67: Objet | D67: Montant | E67: Balance
K71: =IF(J71="","",K70+J71) -> 
B77: Dépensé | C77: =SUM(D68:D76) -> 0 | D77: Restant | E77: =C66+C77 -> 100
B79: LDD Solidaire | C79: 100
B80: Date | C80: Objet | D80: Montant | E80: Balance
B90: Dépensé | C90: =SUM(D81:D89) -> 0 | D90: Restant | E90: =C79+C90 -> 100
B92: Millevie essentiel | C92: 100
B93: Date | C93: Objet | D93: Montant | E93: Balance
B103: Dépensé | C103: =SUM(D94:D102) -> 0 | D103: Restant | E103: =C92+C103 -> 100
M106: Dépensé | N106: =SUM(O57:O105) -> 0 | O106: Restant | P106: =N55+N106 -> 0
M108: Vêtements
M109: Date | N109: Objet | O109: Montant | P109: Balance
M129: Dépensé | N129: =SUM(O110:O128) -> 0 | O129: Restant | P129: =N108+N129 -> 0
M131: Hygiène
M132: Date | N132: Objet | O132: Montant | P132: Balance
K135: =IF(J135="","",K134+J135) -> 
H153: Gagné | I153: =SUMIF(J4:J152,">0") -> 2716 | J153: Restant | K153: =I153+I154 -> 2562 | M153: Dépensé | N153: =SUM(O133:O152) -> 0 | O153: Restant | P153: =N131+N153 -> 0
H154: Dépensé | I154: =SUMIF(J4:J152,"<0") -> -154

Sheet Février
B2: Revenus mensuels | G2: Opérations | M2: Reste & loisirs
B3: Nom | C3: Date | D3: Montant | E3: Reçu | G3: Date | H3: Objet | I3: Catégorie | J3: Montant | K3: Balance | M3: Date | N3: Objet | O3: Montant | P3: Balance
B4: Reste Janvier | D4: =Janvier!K153 -> 2562 | G4: =B4 -> Reste Janvier | J4: =D4 -> 2562 | K4: =J4 -> 2562
B5: Salaire Février | D5: 2 | G5: =B5 -> Salaire Février | J5: =D5 -> 2 | K5: =K4+J5 -> 2564
K6: =IF(J6="","",K5+J6) -> 
K7: =IF(J7="","",K6+J7) -> 
B14: Total
B16: Frais mensuels
B17: Nom | C17: Date | D17: Montant | E17: Reçu
B38: Total
B40: Budget mensuel
B41: Nom | C41: Montant | D41: Reste mois précédent
B42: Total | D42: =D4 -> 2562
B43: Hygiène
B44: Vêtements
B45: Nourriture
B46: Reste/loisirs
B48: Calendrier
B49: Début mois | C49: 2024-02-01
B50: Fin mois | C50: =EOMONTH(C49,0) -> 2024-02-29 | D50: Budget quot.
B51: Nmbr de jours | C51: =DAY(EOMONTH(C49,0)) -> 29 | D51: =C46/C51 -> 0
B53: Livret A | C53: =Janvier!E64 -> 100 | M53: Dépensé | N53: =SUM(O4:O52) -> 0 | O53: Restant | P53: =N2+N53 -> 0
B54: Date | C54: Objet | D54: Montant | E54: Balance
M55: Nourriture
M56: Date | N56: Objet | O56: Montant | P56: Balance
B64: Dépensé | C64: =SUM(D55:D63) -> 0 | D64: Restant | E64: =C53+C64 -> 100
B66: Livret Jeune | C66: =Janvier!E77 -> 100
B67: Date | C67: Objet | D67: Montant | E67: Balance
K71: =IF(J71="","",K70+J71) -> 
B77: Dépensé | C77: =SUM(D68:D76) -> 0 | D77: Restant | E77: =C66+C77 -> 100
B79: LDD Solidaire | C79: =Janvier!E90 -> 100
B80: Date | C80: Objet | D80: Montant | E80: Balance
B90: Dépensé | C90: =SUM(D81:D89) -> 0 | D90: Restant | E90: =C79+C90 -> 100
B92: Millevie essentiel | C92: =Janvier!E103 -> 100
B93: Date | C93: Objet | D93: Montant | E93: Balance
B103: Dépensé | C103: =SUM(D94:D102) -> 0 | D103: Restant | E103: =C92+C103 -> 100
M106: Dépensé | N106: =SUM(O57:O105) -> 0 | O106: Restant | P106: =N55+N106 -> 0
M108: Vêtements
M109: Date | N109: Objet | O109: Montant | P109: Balance
M129: Dépensé | N129: =SUM(O110:O128) -> 0 | O129: Restant | P129: =N108+N129 -> 0
M131: Hygiène
M132: Date | N132: Objet | O132: Montant | P132: Balance
K135: =IF(J135="","",K134+J135) -> 
H153: Gagné | I153: =SUMIF(J4:J152,">0") -> 2564 | J153: Restant | K153: =I153+I154 -> 2564 | M153: Dépensé | N153: =SUM(O133:O152) -> 0 | O153: Restant | P153: =N131+N153 -> 0
H154: Dépensé | I154: =SUMIF(J4:J152,"<0") -> 0

Sheet Mars
B2: Revenus mensuels | G2: Opérations | M2: Reste & loisirs
B3: Nom | C3: Date | D3: Montant | E3: Reçu | G3: Date | H3: Objet | I3: Catégorie | J3: Montant | K3: Balance | M3: Date | N3: Objet | O3: Montant | P3: Balance
B4: Reste Février | D4: =Février!K153 -> 2564 | G4: =B4 -> Reste Février | J4: =D4 -> 2564 | K4: =J4 -> 2564
B5: Salaire Mars | D5: 2 | G5: =B5 -> Salaire Mars | J5: =D5 -> 2 | K5: =K4+J5 -> 2566
K6: =IF(J6="","",K5+J6) -> 
K7: =IF(J7="","",K6+J7) -> 
B14: Total
B16: Frais mensuels
B17: Nom | C17: Date | D17: Montant | E17: Reçu
B38: Total
B40: Budget mensuel
B41: Nom | C41: Montant | D41: Reste mois précédent
B42: Total | D42: =D4 -> 2564
B43: Hygiène
B44: Vêtements
B45: Nourriture
B46: Reste/loisirs
B48: Calendrier
B49: Début mois | C49: 2024-03-01
B50: Fin mois | C50: =EOMONTH(C49,0) -> 2024-03-31 | D50: Budget quot.
B51: Nmbr de jours | C51: =DAY(EOMONTH(C49,0)) -> 31 | D51: =C46/C51 -> 0
B53: Livret A | C53: =Février!E64 -> 100 | M53: Dépensé | N53: =SUM(O4:O52) -> 0 | O53: Restant | P53: =N2+N53 -> 0
B54: Date | C54: Objet | D54: Montant | E54: Balance
M55: Nourriture
M56: Date | N56: Objet | O56: Montant | P56: Balance
B64: Dépensé | C64: =SUM(D55:D63) -> 0 | D64: Restant | E64: =C53+C64 -> 100
B66: Livret Jeune | C66: =Février!E77 -> 100
B67: Date | C67: Objet | D67: Montant | E67: Balance
K71: =IF(J71="","",K70+J71) -> 
B77: Dépensé | C77: =SUM(D68:D76) -> 0 | D77: Restant | E77: =C66+C77 -> 100
B79: LDD Solidaire | C79: =Février!E90 -> 100
B80: Date | C80: Objet | D80: Montant | E80: Balance
B90: Dépensé | C90: =SUM(D81:D89) -> 0 | D90: Restant | E90: =C79+C90 -> 100
B92: Millevie essentiel | C92: =Février!E103 -> 100
B93: Date | C93: Objet | D93: Montant | E93: Balance
B103: Dépensé | C103: =SUM(D94:D102) -> 0 | D103: Restant | E103: =C92+C103 -> 100
M106: Dépensé | N106: =SUM(O57:O105) -> 0 | O106: Restant | P106: =N55+N106 -> 0
M108: Vêtements
M109: Date | N109: Objet | O109: Montant | P109: Balance
M129: Dépensé | N129: =SUM(O110:O128) -> 0 | O129: Restant | P129: =N108+N129 -> 0
M131: Hygiène
M132: Date | N132: Objet | O132: Montant | P132: Balance
K135: =IF(J135="","",K134+J135) -> 
H153: Gagné | I153: =SUMIF(J4:J152,">0") -> 2566 | J153: Restant | K153: =I153+I154 -> 2566 | M153: Dépensé | N153: =SUM(O133:O152) -> 0 | O153: Restant | P153: =N131+N153 -> 0
H154: Dépensé | I154: =SUMIF(J4:J152,"<0") -> 0

Sheet Avril
B2: Revenus mensuels | G2: Opérations | M2: Reste & loisirs
B3: Nom | C3: Date | D3: Montant | E3: Reçu | G3: Date | H3: Objet | I3: Catégorie | J3: Montant | K3: Balance | M3: Date | N3: Objet | O3: Montant | P3: Balance
B4: Reste Mars | D4: =Mars!K153 -> 2566 | G4: =B4 -> Reste Mars | J4: =D4 -> 2566 | K4: =J4 -> 2566
B5: Salaire Avril | D5: 2 | G5: =B5 -> Salaire Avril | J5: =D5 -> 2 | K5: =K4+J5 -> 2568
K6: =IF(J6="","",K5+J6) -> 
K7: =IF(J7="","",K6+J7) -> 
B14: Total
B16: Frais mensuels
B17: Nom | C17: Date | D17: Montant | E17: Reçu
B38: Total
B40: Budget mensuel
B41: Nom | C41: Montant | D41: Reste mois précédent
B42: Total | D42: =D4 -> 2566
B43: Hygiène
B44: Vêtements
B45: Nourriture
B46: Reste/loisirs
B48: Calendrier
B49: Début mois | C49: 2024-04-01
B50: Fin mois | C50: =EOMONTH(C49,0) -> 2024-04-30 | D50: Budget quot.
B51: Nmbr de jours | C51: =DAY(EOMONTH(C49,0)) -> 30 | D51: =C46/C51 -> 0
B53: Livret A | C53: =Mars!E64 -> 100 | M53: Dépensé | N53: =SUM(O4:O52) -> 0 | O53: Restant | P53: =N2+N53 -> 0
B54: Date | C54: Objet | D54: Montant | E54: Balance
M55: Nourriture
M56: Date | N56: Objet | O56: Montant | P56: Balance
B64: Dépensé | C64: =SUM(D55:D63) -> 0 | D64: Restant | E64: =C53+C64 -> 100
B66: Livret Jeune | C66: =Mars!E77 -> 100
B67: Date | C67: Objet | D67: Montant | E67: Balance
K71: =IF(J71="","",K70+J71) -> 
B77: Dépensé | C77: =SUM(D68:D76) -> 0 | D77: Restant | E77: =C66+C77 -> 100
B79: LDD Solidaire | C79: =Mars!E90 -> 100
B80: Date | C80: Objet | D80: Montant | E80: Balance
B90: Dépensé | C90: =SUM(D81:D89) -> 0 | D90: Restant | E90: =C79+C90 -> 100
B92: Millevie essentiel | C92: =Mars!E103 -> 100
B93: Date | C93: Objet | D93: Montant | E93: Balance
B103: Dépensé | C103: =SUM(D94:D102) -> 0 | D103: Restant | E103: =C92+C103 -> 100
M106: Dépensé | N106: =SUM(O57:O105) -> 0 | O106: Restant | P106: =N55+N106 -> 0
M108: Vêtements
M109: Date | N109: Objet | O109: Montant | P109: Balance
M129: Dépensé | N129: =SUM(O110:O128) -> 0 | O129: Restant | P129: =N108+N129 -> 0
M131: Hygiène
M132: Date | N132: Objet | O132: Montant | P132: Balance
K135: =IF(J135="","",K134+J135) -> 
H153: Gagné | I153: =SUMIF(J4:J152,">0") -> 2568 | J153: Restant | K153: =I153+I154 -> 2568 | M153: Dépensé | N153: =SUM(O133:O152) -> 0 | O153: Restant | P153: =N131+N153 -> 0
H154: Dépensé | I154: =SUMIF(J4:J152,"<0") -> 0

Sheet Mai
B2: Revenus mensuels | G2: Opérations | M2: Reste & loisirs
B3: Nom | C3: Date | D3: Montant | E3: Reçu | G3: Date | H3: Objet | I3: Catégorie | J3: Montant | K3: Balance | M3: Date | N3: Objet | O3: Montant | P3: Balance
B4: Reste Avril | D4: =Avril!K153 -> 2568 | G4: =B4 -> Reste Avril | J4: =D4 -> 2568 | K4: =J4 -> 2568
B5: Salaire Mai | D5: 2 | G5: =B5 -> Salaire Mai | J5: =D5 -> 2 | K5: =K4+J5 -> 2570
K6: =IF(J6="","",K5+J6) -> 
K7: =IF(J7="","",K6+J7) -> 
B14: Total
B16: Frais mensuels
B17: Nom | C17: Date | D17: Montant | E17: Reçu
B38: Total
B40: Budget mensuel
B41: Nom | C41: Montant | D41: Reste mois précédent
B42: Total | D42: =D4 -> 2568
B43: Hygiène
B44: Vêtements
B45: Nourriture
B46: Reste/loisirs
B48: Calendrier
B49: Début mois | C49: 2024-05-01
B50: Fin mois | C50: =EOMONTH(C49,0) -> 2024-05-31 | D50: Budget quot.
B51: Nmbr de jours | C51: =DAY(EOMONTH(C49,0)) -> 31 | D51: =C46/C51 -> 0
B53: Livret A | C53: =Avril!E64 -> 100 | M53: Dépensé | N53: =SUM(O4:O52) -> 0 | O53: Restant | P53: =N2+N53 -> 0
B54: Date | C54: Objet | D54: Montant | E54: Balance
M55: Nourriture
M56: Date | N56: Objet | O56: Montant | P56: Balance
B64: Dépensé | C64: =SUM(D55:D63) -> 0 | D64: Restant | E64: =C53+C64 -> 100
B66: Livret Jeune | C66: =Avril!E77 -> 100
B67: Date | C67: Objet | D67: Montant | E67: Balance
K71: =IF(J71="","",K70+J71) -> 
B77: Dépensé | C77: =SUM(D68:D76) -> 0 | D77: Restant | E77: =C66+C77 -> 100
B79: LDD Solidaire | C79: =Avril!E90 -> 100
B80: Date | C80: Objet | D80: Montant | E80: Balance
B90: Dépensé | C90: =SUM(D81:D89) -> 0 | D90: Restant | E90: =C79+C90 -> 100
B92: Millevie essentiel | C92: =Avril!E103 -> 100
B93: Date | C93: Objet | D93: Montant | E93: Balance
B103: Dépensé | C103: =SUM(D94:D102) -> 0 | D103: Restant | E103: =C92+C103 -> 100
M106: Dépensé | N106: =SUM(O57:O105) -> 0 | O106: Restant | P106: =N55+N106 -> 0
M108: Vêtements
M109: Date | N109: Objet | O109: Montant | P109: Balance
M129: Dépensé | N129: =SUM(O110:O128) -> 0 | O129: Restant | P129: =N108+N129 -> 0
M131: Hygiène
M132: Date | N132: Objet | O132: Montant | P132: Balance
K135: =IF(J135="","",K134+J135) -> 
H153: Gagné | I153: =SUMIF(J4:J152,">0") -> 2570 | J153: Restant | K153: =I153+I154 -> 2570 | M153: Dépensé | N153: =SUM(O133:O152) -> 0 | O153: Restant | P153: =N131+N153 -> 0
H154: Dépensé | I154: =SUMIF(J4:J152,"<0") -> 0

Sheet Juin
B2: Revenus mensuels | G2: Opérations | M2: Reste & loisirs
B3: Nom | C3: Date | D3: Montant | E3: Reçu | G3: Date | H3: Objet | I3: Catégorie | J3: Montant | K3: Balance | M3: Date | N3: Objet | O3: Montant | P3: Balance
B4: Reste Mai | D4: =Mai!K153 -> 2570 | G4: =B4 -> Reste Mai | J4: =D4 -> 2570 | K4: =J4 -> 2570
B5: Salaire Juin | D5: 2 | G5: =B5 -> Salaire Juin | J5: =D5 -> 2 | K5: =K4+J5 -> 2572
K6: =IF(J6="","",K5+J6) -> 
K7: =IF(J7="","",K6+J7) -> 
B14: Total
B16: Frais mensuels
B17: Nom | C17: Date | D17: Montant | E17: Reçu
B38: Total
B40: Budget mensuel
B41: Nom | C41: Montant | D41: Reste mois précédent
B42: Total | D42: =D4 -> 2570
B43: Hygiène
B44: Vêtements
B45: Nourriture
B46: Reste/loisirs
B48: Calendrier
B49: Début mois | C49: 2024-06-01
B50: Fin mois | C50: =EOMONTH(C49,0) -> 2024-06-30 | D50: Budget quot.
B51: Nmbr de jours | C51: =DAY(EOMONTH(C49,0)) -> 30 | D51: =C46/C51 -> 0
B53: Livret A | C53: =Mai!E64 -> 100 | M53: Dépensé | N53: =SUM(O4:O52) -> 0 | O53: Restant | P53: =N2+N53 -> 0
B54: Date | C54: Objet | D54: Montant | E54: Balance
M55: Nourriture
M56: Date | N56: Objet | O56: Montant | P56: Balance
B64: Dépensé | C64: =SUM(D55:D63) -> 0 | D64: Restant | E64: =C53+C64 -> 100
B66: Livret Jeune | C66: =Mai!E77 -> 100
B67: Date | C67: Objet | D67: Montant | E67: Balance
K71: =IF(J71="","",K70+J71) -> 
B77: Dépensé | C77: =SUM(D68:D76) -> 0 | D77: Restant | E77: =C66+C77 -> 100
B79: LDD Solidaire | C79: =Mai!E90 -> 100
B80: Date | C80: Objet | D80: Montant | E80: Balance
B90: Dépensé | C90: =SUM(D81:D89) -> 0 | D90: Restant | E90: =C79+C90 -> 100
B92: Millevie essentiel | C92: =Mai!E103 -> 100
B93: Date | C93: Objet | D93: Montant | E93: Balance
B103: Dépensé | C103: =SUM(D94:D102) -> 0 | D103: Restant | E103: =C92+C103 -> 100
M106: Dépensé | N106: =SUM(O57:O105) -> 0 | O106: Restant | P106: =N55+N106 -> 0
M108: Vêtements
M109: Date | N109: Objet | O109: Montant | P109: Balance
M129: Dépensé | N129: =SUM(O110:O128) -> 0 | O129: Restant | P129: =N108+N129 -> 0
M131: Hygiène
M132: Date | N132: Objet | O132: Montant | P132: Balance
K135: =IF(J135="","",K134+J135) -> 
H153: Gagné | I153: =SUMIF(J4:J152,">0") -> 2572 | J153: Restant | K153: =I153+I154 -> 2572 | M153: Dépensé | N153: =SUM(O133:O152) -> 0 | O153: Restant | P153: =N131+N153 -> 0
H154: Dépensé | I154: =SUMIF(J4:J152,"<0") -> 0

Sheet Juillet
B2: Revenus mensuels | G2: Opérations | M2: Reste & loisirs
B3: Nom | C3: Date | D3: Montant | E3: Reçu | G3: Date | H3: Objet | I3: Catégorie | J3: Montant | K3: Balance | M3: Date | N3: Objet | O3: Montant | P3: Balance
B4: Reste Juin | D4: =Juin!K153 -> 2572 | G4: =B4 -> Reste Juin | J4: =D4 -> 2572 | K4: =J4 -> 2572
B5: Salaire Juillet | D5: 2 | G5: =B5 -> Salaire Juillet | J5: =D5 -> 2 | K5: =K4+J5 -> 2574
K6: =IF(J6="","",K5+J6) -> 
K7: =IF(J7="","",K6+J7) -> 
B14: Total
B16: Frais mensuels
B17: Nom | C17: Date | D17: Montant | E17: Reçu
B38: Total
B40: Budget mensuel
B41: Nom | C41: Montant | D41: Reste mois précédent
B42: Total | D42: =D4 -> 2572
B43: Hygiène
B44: Vêtements
B45: Nourriture
B46: Reste/loisirs
B48: Calendrier
B49: Début mois | C49: 2024-06-01
B50: Fin mois | C50: =EOMONTH(C49,0) -> 2024-06-30 | D50: Budget quot.
B51: Nmbr de jours | C51: =DAY(EOMONTH(C49,0)) -> 30 | D51: =C46/C51 -> 0
B53: Livret A | C53: =Juin!E64 -> 100 | M53: Dépensé | N53: =SUM(O4:O52) -> 0 | O53: Restant | P53: =N2+N53 -> 0
B54: Date | C54: Objet | D54: Montant | E54: Balance
M55: Nourriture
M56: Date | N56: Objet | O56: Montant | P56: Balance
B64: Dépensé | C64: =SUM(D55:D63) -> 0 | D64: Restant | E64: =C53+C64 -> 100
B66: Livret Jeune | C66: =Juin!E77 -> 100
B67: Date | C67: Objet | D67: Montant | E67: Balance
K71: =IF(J71="","",K70+J71) -> 
B77: Dépensé | C77: =SUM(D68:D76) -> 0 | D77: Restant | E77: =C66+C77 -> 100
B79: LDD Solidaire | C79: =Juin!E90 -> 100
B80: Date | C80: Objet | D80: Montant | E80: Balance
B90: Dépensé | C90: =SUM(D81:D89) -> 0 | D90: Restant | E90: =C79+C90 -> 100
B92: Millevie essentiel | C92: =Juin!E103 -> 100
B93: Date | C93: Objet | D93: Montant | E93: Balance
B103: Dépensé | C103: =SUM(D94:D102) -> 0 | D103: Restant | E103: =C92+C103 -> 100
M106: Dépensé | N106: =SUM(O57:O105) -> 0 | O106: Restant | P106: =N55+N106 -> 0
M108: Vêtements
M109: Date | N109: Objet | O109: Montant | P109: Balance
M129: Dépensé | N129: =SUM(O110:O128) -> 0 | O129: Restant | P129: =N108+N129 -> 0
M131: Hygiène
M132: Date | N132: Objet | O132: Montant | P132: Balance
K135: =IF(J135="","",K134+J135) -> 
H153: Gagné | I153: =SUMIF(J4:J152,">0") -> 2574 | J153: Restant | K153: =I153+I154 -> 2574 | M153: Dépensé | N153: =SUM(O133:O152) -> 0 | O153: Restant | P153: =N131+N153 -> 0
H154: Dépensé | I154: =SUMIF(J4:J152,"<0") -> 0

Sheet Août
B2: Revenus mensuels | G2: Opérations | M2: Reste & loisirs
B3: Nom | C3: Date | D3: Montant | E3: Reçu | G3: Date | H3: Objet | I3: Catégorie | J3: Montant | K3: Balance | M3: Date | N3: Objet | O3: Montant | P3: Balance
B4: Reste Juillet | D4: =Juillet!K153 -> 2574 | G4: =B4 -> Reste Juillet | J4: =D4 -> 2574 | K4: =J4 -> 2574
B5: Salaire Août | D5: 2 | G5: =B5 -> Salaire Août | J5: =D5 -> 2 | K5: =K4+J5 -> 2576
K6: =IF(J6="","",K5+J6) -> 
K7: =IF(J7="","",K6+J7) -> 
B14: Total
B16: Frais mensuels
B17: Nom | C17: Date | D17: Montant | E17: Reçu
B38: Total
B40: Budget mensuel
B41: Nom | C41: Montant | D41: Reste mois précédent
B42: Total | D42: =D4 -> 2574
B43: Hygiène
B44: Vêtements
B45: Nourriture
B46: Reste/loisirs
B48: Calendrier
B49: Début mois | C49: 2024-08-01
B50: Fin mois | C50: =EOMONTH(C49,0) -> 2024-08-31 | D50: Budget quot.
B51: Nmbr de jours | C51: =DAY(EOMONTH(C49,0)) -> 31 | D51: =C46/C51 -> 0
B53: Livret A | C53: =Juillet!E64 -> 100 | M53: Dépensé | N53: =SUM(O4:O52) -> 0 | O53: Restant | P53: =N2+N53 -> 0
B54: Date | C54: Objet | D54: Montant | E54: Balance
M55: Nourriture
M56: Date | N56: Objet | O56: Montant | P56: Balance
B64: Dépensé | C64: =SUM(D55:D63) -> 0 | D64: Restant | E64: =C53+C64 -> 100
B66: Livret Jeune | C66: =Juillet!E77 -> 100
B67: Date | C67: Objet | D67: Montant | E67: Balance
K71: =IF(J71="","",K70+J71) -> 
B77: Dépensé | C77: =SUM(D68:D76) -> 0 | D77: Restant | E77: =C66+C77 -> 100
B79: LDD Solidaire | C79: =Juillet!E90 -> 100
B80: Date | C80: Objet | D80: Montant | E80: Balance
B90: Dépensé | C90: =SUM(D81:D89) -> 0 | D90: Restant | E90: =C79+C90 -> 100
B92: Millevie essentiel | C92: =Juillet!E103 -> 100
B93: Date | C93: Objet | D93: Montant | E93: Balance
B103: Dépensé | C103: =SUM(D94:D102) -> 0 | D103: Restant | E103: =C92+C103 -> 100
M106: Dépensé | N106: =SUM(O57:O105) -> 0 | O106: Restant | P106: =N55+N106 -> 0
M108: Vêtements
M109: Date | N109: Objet | O109: Montant | P109: Balance
M129: Dépensé | N129: =SUM(O110:O128) -> 0 | O129: Restant | P129: =N108+N129 -> 0
M131: Hygiène
M132: Date | N132: Objet | O132: Montant | P132: Balance
K135: =IF(J135="","",K134+J135) -> 
H153: Gagné | I153: =SUMIF(J4:J152,">0") -> 2576 | J153: Restant | K153: =I153+I154 -> 2576 | M153: Dépensé | N153: =SUM(O133:O152) -> 0 | O153: Restant | P153: =N131+N153 -> 0
H154: Dépensé | I154: =SUMIF(J4:J152,"<0") -> 0

Sheet Septembre
B2: Revenus mensuels | G2: Opérations | M2: Reste & loisirs
B3: Nom | C3: Date | D3: Montant | E3: Reçu | G3: Date | H3: Objet | I3: Catégorie | J3: Montant | K3: Balance | M3: Date | N3: Objet | O3: Montant | P3: Balance
B4: Reste Août | D4: =Août!K153 -> 2576 | G4: =B4 -> Reste Août | J4: =D4 -> 2576 | K4: =J4 -> 2576
B5: Salaire Septembre | D5: 2 | G5: =B5 -> Salaire Septembre | J5: =D5 -> 2 | K5: =K4+J5 -> 2578
K6: =IF(J6="","",K5+J6) -> 
K7: =IF(J7="","",K6+J7) -> 
B14: Total
B16: Frais mensuels
B17: Nom | C17: Date | D17: Montant | E17: Reçu
B38: Total
B40: Budget mensuel
B41: Nom | C41: Montant | D41: Reste mois précédent
B42: Total | D42: =D4 -> 2576
B43: Hygiène
B44: Vêtements
B45: Nourriture
B46: Reste/loisirs
B48: Calendrier
B49: Début mois | C49: 2024-09-01
B50: Fin mois | C50: =EOMONTH(C49,0) -> 2024-09-30 | D50: Budget quot.
B51: Nmbr de jours | C51: =DAY(EOMONTH(C49,0)) -> 30 | D51: =C46/C51 -> 0
B53: Livret A | C53: =Août!E64 -> 100 | M53: Dépensé | N53: =SUM(O4:O52) -> 0 | O53: Restant | P53: =N2+N53 -> 0
B54: Date | C54: Objet | D54: Montant | E54: Balance
M55: Nourriture
M56: Date | N56: Objet | O56: Montant | P56: Balance
B64: Dépensé | C64: =SUM(D55:D63) -> 0 | D64: Restant | E64: =C53+C64 -> 100
B66: Livret Jeune | C66: =Août!E77 -> 100
B67: Date | C67: Objet | D67: Montant | E67: Balance
K71: =IF(J71="","",K70+J71) -> 
B77: Dépensé | C77: =SUM(D68:D76) -> 0 | D77: Restant | E77: =C66+C77 -> 100
B79: LDD Solidaire | C79: =Août!E90 -> 100
B80: Date | C80: Objet | D80: Montant | E80: Balance
B90: Dépensé | C90: =SUM(D81:D89) -> 0 | D90: Restant | E90: =C79+C90 -> 100
B92: Millevie essentiel | C92: =Août!E103 -> 100
B93: Date | C93: Objet | D93: Montant | E93: Balance
B103: Dépensé | C103: =SUM(D94:D102) -> 0 | D103: Restant | E103: =C92+C103 -> 100
M106: Dépensé | N106: =SUM(O57:O105) -> 0 | O106: Restant | P106: =N55+N106 -> 0
M108: Vêtements
M109: Date | N109: Objet | O109: Montant | P109: Balance
M129: Dépensé | N129: =SUM(O110:O128) -> 0 | O129: Restant | P129: =N108+N129 -> 0
M131: Hygiène
M132: Date | N132: Objet | O132: Montant | P132: Balance
K135: =IF(J135="","",K134+J135) -> 
H153: Gagné | I153: =SUMIF(J4:J152,">0") -> 2578 | J153: Restant | K153: =I153+I154 -> 2578 | M153: Dépensé | N153: =SUM(O133:O152) -> 0 | O153: Restant | P153: =N131+N153 -> 0
H154: Dépensé | I154: =SUMIF(J4:J152,"<0") -> 0

Sheet Octobre
B2: Revenus mensuels | G2: Opérations | M2: Reste & loisirs
B3: Nom | C3: Date | D3: Montant | E3: Reçu | G3: Date | H3: Objet | I3: Catégorie | J3: Montant | K3: Balance | M3: Date | N3: Objet | O3: Montant | P3: Balance
B4: Reste Septembre | D4: =Septembre!K153 -> 2578 | G4: =B4 -> Reste Septembre | J4: =D4 -> 2578 | K4: =J4 -> 2578
B5: Salaire Octobre | D5: 2 | G5: =B5 -> Salaire Octobre | J5: =D5 -> 2 | K5: =K4+J5 -> 2580
K6: =IF(J6="","",K5+J6) -> 
K7: =IF(J7="","",K6+J7) -> 
B14: Total
B16: Frais mensuels
B17: Nom | C17: Date | D17: Montant | E17: Reçu
B38: Total
B40: Budget mensuel
B41: Nom | C41: Montant | D41: Reste mois précédent
B42: Total | D42: =D4 -> 2578
B43: Hygiène
B44: Vêtements
B45: Nourriture
B46: Reste/loisirs
B48: Calendrier
B49: Début mois | C49: 2024-10-01
B50: Fin mois | C50: =EOMONTH(C49,0) -> 2024-10-31 | D50: Budget quot.
B51: Nmbr de jours | C51: =DAY(EOMONTH(C49,0)) -> 31 | D51: =C46/C51 -> 0
B53: Livret A | C53: =Septembre!E64 -> 100 | M53: Dépensé | N53: =SUM(O4:O52) -> 0 | O53: Restant | P53: =N2+N53 -> 0
B54: Date | C54: Objet | D54: Montant | E54: Balance
M55: Nourriture
M56: Date | N56: Objet | O56: Montant | P56: Balance
B64: Dépensé | C64: =SUM(D55:D63) -> 0 | D64: Restant | E64: =C53+C64 -> 100
B66: Livret Jeune | C66: =Septembre!E77 -> 100
B67: Date | C67: Objet | D67: Montant | E67: Balance
K71: =IF(J71="","",K70+J71) -> 
B77: Dépensé | C77: =SUM(D68:D76) -> 0 | D77: Restant | E77: =C66+C77 -> 100
B79: LDD Solidaire | C79: =Septembre!E90 -> 100
B80: Date | C80: Objet | D80: Montant | E80: Balance
B90: Dépensé | C90: =SUM(D81:D89) -> 0 | D90: Restant | E90: =C79+C90 -> 100
B92: Millevie essentiel | C92: =Septembre!E103 -> 100
B93: Date | C93: Objet | D93: Montant | E93: Balance
B103: Dépensé | C103: =SUM(D94:D102) -> 0 | D103: Restant | E103: =C92+C103 -> 100
M106: Dépensé | N106: =SUM(O57:O105) -> 0 | O106: Restant | P106: =N55+N106 -> 0
M108: Vêtements
M109: Date | N109: Objet | O109: Montant | P109: Balance
M129: Dépensé | N129: =SUM(O110:O128) -> 0 | O129: Restant | P129: =N108+N129 -> 0
M131: Hygiène
M132: Date | N132: Objet | O132: Montant | P132: Balance
K135: =IF(J135="","",K134+J135) -> 
H153: Gagné | I153: =SUMIF(J4:J152,">0") -> 2580 | J153: Restant | K153: =I153+I154 -> 2580 | M153: Dépensé | N153: =SUM(O133:O152) -> 0 | O153: Restant | P153: =N131+N153 -> 0
H154: Dépensé | I154: =SUMIF(J4:J152,"<0") -> 0

Sheet Novembre
B2: Revenus mensuels | G2: Opérations | M2: Reste & loisirs
B3: Nom | C3: Date | D3: Montant | E3: Reçu | G3: Date | H3: Objet | I3: Catégorie | J3: Montant | K3: Balance | M3: Date | N3: Objet | O3: Montant | P3: Balance
B4: Reste Octobre | D4: =Octobre!K153 -> 2580 | G4: =B4 -> Reste Octobre | J4: =D4 -> 2580 | K4: =J4 -> 2580
B5: Salaire Novembre | D5: 2 | G5: =B5 -> Salaire Novembre | J5: =D5 -> 2 | K5: =K4+J5 -> 2582
K6: =IF(J6="","",K5+J6) -> 
K7: =IF(J7="","",K6+J7) -> 
B14: Total
B16: Frais mensuels
B17: Nom | C17: Date | D17: Montant | E17: Reçu
B38: Total
B40: Budget mensuel
B41: Nom | C41: Montant | D41: Reste mois précédent
B42: Total | D42: =D4 -> 2580
B43: Hygiène
B44: Vêtements
B45: Nourriture
B46: Reste/loisirs
B48: Calendrier
B49: Début mois | C49: 2024-11-01
B50: Fin mois | C50: =EOMONTH(C49,0) -> 2024-11-30 | D50: Budget quot.
B51: Nmbr de jours | C51: =DAY(EOMONTH(C49,0)) -> 30 | D51: =C46/C51 -> 0
B53: Livret A | C53: =Octobre!E64 -> 100 | M53: Dépensé | N53: =SUM(O4:O52) -> 0 | O53: Restant | P53: =N2+N53 -> 0
B54: Date | C54: Objet | D54: Montant | E54: Balance
M55: Nourriture
M56: Date | N56: Objet | O56: Montant | P56: Balance
B64: Dépensé | C64: =SUM(D55:D63) -> 0 | D64: Restant | E64: =C53+C64 -> 100
B66: Livret Jeune | C66: =Octobre!E77 -> 100
B67: Date | C67: Objet | D67: Montant | E67: Balance
K71: =IF(J71="","",K70+J71) -> 
B77: Dépensé | C77: =SUM(D68:D76) -> 0 | D77: Restant | E77: =C66+C77 -> 100
B79: LDD Solidaire | C79: =Octobre!E90 -> 100
B80: Date | C80: Objet | D80: Montant | E80: Balance
B90: Dépensé | C90: =SUM(D81:D89) -> 0 | D90: Restant | E90: =C79+C90 -> 100
B92: Millevie essentiel | C92: =Octobre!E103 -> 100
B93: Date | C93: Objet | D93: Montant | E93: Balance
B103: Dépensé | C103: =SUM(D94:D102) -> 0 | D103: Restant | E103: =C92+C103 -> 100
M106: Dépensé | N106: =SUM(O57:O105) -> 0 | O106: Restant | P106: =N55+N106 -> 0
M108: Vêtements
M109: Date | N109: Objet | O109: Montant | P109: Balance
M129: Dépensé | N129: =SUM(O110:O128) -> 0 | O129: Restant | P129: =N108+N129 -> 0
M131: Hygiène
M132: Date | N132: Objet | O132: Montant | P132: Balance
K135: =IF(J135="","",K134+J135) -> 
H153: Gagné | I153: =SUMIF(J4:J152,">0") -> 2582 | J153: Restant | K153: =I153+I154 -> 2582 | M153: Dépensé | N153: =SUM(O133:O152) -> 0 | O153: Restant | P153: =N131+N153 -> 0
H154: Dépensé | I154: =SUMIF(J4:J152,"<0") -> 0

Sheet Décembre
B2: Revenus mensuels | G2: Opérations | M2: Reste & loisirs
B3: Nom | C3: Date | D3: Montant | E3: Reçu | G3: Date | H3: Objet | I3: Catégorie | J3: Montant | K3: Balance | M3: Date | N3: Objet | O3: Montant | P3: Balance
B4: Reste Novembre | D4: =Novembre!K153 -> 2582 | G4: =B4 -> Reste Novembre | J4: =D4 -> 2582 | K4: =J4 -> 2582
B5: Salaire Décembre | D5: 2 | G5: =B5 -> Salaire Décembre | J5: =D5 -> 2 | K5: =K4+J5 -> 2584
K6: =IF(J6="","",K5+J6) -> 
K7: =IF(J7="","",K6+J7) -> 
B14: Total
B16: Frais mensuels
B17: Nom | C17: Date | D17: Montant | E17: Reçu
B38: Total
B40: Budget mensuel
B41: Nom | C41: Montant | D41: Reste mois précédent
B42: Total | D42: =D4 -> 2582
B43: Hygiène
B44: Vêtements
B45: Nourriture
B46: Reste/loisirs
B48: Calendrier
B49: Début mois | C49: 2024-12-01
B50: Fin mois | C50: =EOMONTH(C49,0) -> 2024-12-31 | D50: Budget quot.
B51: Nmbr de jours | C51: =DAY(EOMONTH(C49,0)) -> 31 | D51: =C46/C51 -> 0
B53: Livret A | C53: =Novembre!E64 -> 100 | M53: Dépensé | N53: =SUM(O4:O52) -> 0 | O53: Restant | P53: =N2+N53 -> 0
B54: Date | C54: Objet | D54: Montant | E54: Balance
M55: Nourriture
M56: Date | N56: Objet | O56: Montant | P56: Balance
B64: Dépensé | C64: =SUM(D55:D63) -> 0 | D64: Restant | E64: =C53+C64 -> 100
B66: Livret Jeune | C66: =Novembre!E77 -> 100
B67: Date | C67: Objet | D67: Montant | E67: Balance
K71: =IF(J71="","",K70+J71) -> 
B77: Dépensé | C77: =SUM(D68:D76) -> 0 | D77: Restant | E77: =C66+C77 -> 100
B79: LDD Solidaire | C79: =Novembre!E90 -> 100
B80: Date | C80: Objet | D80: Montant | E80: Balance
B90: Dépensé | C90: =SUM(D81:D89) -> 0 | D90: Restant | E90: =C79+C90 -> 100
B92: Millevie essentiel | C92: =Novembre!E103 -> 100
B93: Date | C93: Objet | D93: Montant | E93: Balance
B103: Dépensé | C103: =SUM(D94:D102) -> 0 | D103: Restant | E103: =C92+C103 -> 100
M106: Dépensé | N106: =SUM(O57:O105) -> 0 | O106: Restant | P106: =N55+N106 -> 0
M108: Vêtements
M109: Date | N109: Objet | O109: Montant | P109: Balance
M129: Dépensé | N129: =SUM(O110:O128) -> 0 | O129: Restant | P129: =N108+N129 -> 0
M131: Hygiène
M132: Date | N132: Objet | O132: Montant | P132: Balance
K135: =IF(J135="","",K134+J135) -> 
H153: Gagné | I153: =SUMIF(J4:J152,">0") -> 2584 | J153: Restant | K153: =I153+I154 -> 2584 | M153: Dépensé | N153: =SUM(O133:O152) -> 0 | O153: Restant | P153: =N131+N153 -> 0
H154: Dépensé | I154: =SUMIF(J4:J152,"<0") -> 0
